bitfinex/quotes_ETHUSD_20250806
["timestamp","ask_amount","ask_price","bid_price","bid_amount"]
[1754444179416,0.14,3570.5,3570.4,2.8007368]
[1754444179919,0.14,3570.5,3570.4,3.9495368]
[1754444180121,4.38,3570.7,3570.5,2.80066995]
[1754444180307,4.38,3570.7,3570.4,2.80077789]
[1754444180507,4.38,3570.7,3570.6,1.1488]
[1754444181033,2.79992007,3571.6,3570.6,1.83783508]
[1754444181338,0.14,3571.2,3570.9,2.80037536]
[1754444181497,0.14,3571.2,3571.0,1.1488]
[1754444181706,0.14,3571.2,3570.8,0.4386]
[1754444181887,2.80028378,3571.1,3570.8,0.7102]
[1754444182188,4.378,3571.0,3570.8,0.7102]
[1754444182390,4.378,3571.0,3570.8,0.4386]
[1754444182643,4.378,3571.0,3570.9,1.1488]
[1754444183120,4.518,3571.0,3570.9,1.1488]
[1754444183318,0.14,3571.0,3570.9,3.94921446]
[1754444183535,4.379,3571.1,3570.9,1.1488]
[1754444183686,4.378,3571.1,3570.7,2.9405446]
[1754444183891,4.378,3571.1,3571.0,1.1488]
[1754444184334,7.21326459,3571.1,3570.5,0.7102]
[1754444184624,2.80086264,3570.4,3570.2,0.7102]
[1754444184793,7.17987408,3570.4,3570.1,1e-08]
[1754444184993,0.14,3570.2,3570.1,1e-08]
[1754444185888,2.94096353,3570.2,3570.1,1e-08]
[1754444186120,3.95304608,3570.2,3570.1,1e-08]
[1754444186595,4.43635812,3570.2,3570.1,1e-08]
[1754444186789,7.98635812,3570.2,3570.1,1e-08]
[1754444187010,7.95134608,3570.2,3570.1,1e-08]
[1754444188389,2.80127738,3569.8,3569.7,0.002]
[1754444188595,7.21429334,3569.8,3569.7,0.002]
[1754444188846,7.31927738,3569.8,3569.7,0.002]
[1754444189125,7.31927738,3569.8,3569.7,0.7122]
[1754444189325,0.14,3569.8,3569.7,0.7122]
[1754444189503,4.518,3569.8,3569.7,0.7122]
[1754444190092,4.518,3569.8,3569.7,1.1508]
[1754444190493,0.14,3569.8,3569.7,1.1508]
[1754444190693,4.517,3569.8,3569.7,1.1508]
[1754444191122,0.14,3569.8,3569.7,1.1508]
[1754444191329,4.517,3569.8,3569.7,1.1508]
[1754444191924,7.31827738,3569.8,3569.7,0.002]
[1754444192440,2.94127738,3569.8,3569.7,0.002]
[1754444192644,7.31827738,3569.8,3569.7,0.002]
[1754444193558,7.31627738,3569.8,3569.7,0.002]
[1754444194341,2.94127738,3569.8,3569.7,0.002]
[1754444194549,4.515,3569.8,3569.7,0.002]
[1754444194847,0.001,3570.3,3569.7,0.7122]
[1754444195010,4.374,3570.2,3569.7,1.1508]
[1754444195208,4.374,3570.2,3569.7,0.002]
[1754444195414,2.8010898,3570.1,3569.8,1.1488]
[1754444195755,2.80105216,3570.1,3569.9,1.1488]
[1754444196254,4.374,3570.0,3569.7,0.002]
[1754444196512,7.17512791,3570.0,3569.7,0.002]
[1754444196669,8.17288946,3570.0,3569.7,0.002]
[1754444196824,2.80127738,3569.8,3569.7,0.002]
[1754444198172,2.80127738,3569.8,3569.3,0.002]
[1754444198173,2.8015913,3569.4,3569.3,0.002]
[1754444198473,7.1745913,3569.4,3569.3,0.002]
[1754444198651,8.2866506,3569.4,3569.3,0.002]
[1754444198850,9.4311506,3569.4,3569.3,0.002]
[1754444201964,12.4311506,3569.4,3569.3,0.002]
[1754444202166,2.80221935,3568.6,3568.5,0.002]
[1754444202336,7.17121935,3568.6,3568.5,0.26343596]
[1754444203067,4.369,3568.6,3568.5,0.26343596]
[1754444203369,4.369,3568.6,3568.5,0.69703596]
[1754444203550,4.369,3568.6,3568.5,1.34573596]
[1754444203746,4.368,3568.6,3568.5,1.34573596]
[1754444204350,7.17021935,3568.6,3568.5,1.34573596]
[1754444204905,7.17021935,3568.6,3568.0,0.8531]
[1754444204906,2.80261203,3568.1,3568.0,0.8531]
[1754444205046,10.63351203,3568.1,3568.0,0.8531]
[1754444207234,11.18351203,3568.1,3568.0,0.8531]
[1754444207464,30.93448239,3568.1,3568.0,1e-08]
[1754444207679,33.66314425,3568.1,3568.0,1e-08]
[1754444207878,33.66314425,3568.1,3567.4,0.002]
[1754444207879,2.80331912,3567.2,3567.1,0.04]
[1754444208204,2.80331912,3567.2,3566.4,0.6487]
[1754444208205,2.8035549,3566.9,3566.8,0.15654337]
[1754444208474,2.8035549,3566.9,3564.5,2.91765334]
[1754444208475,26.10460386,3566.8,3566.7,1e-08]
[1754444208639,6.8155335,3566.8,3566.7,1e-08]
[1754444209048,2.80410521,3566.2,3565.5,0.6487]
[1754444209253,7.27915652,3566.2,3565.5,0.6487]
[1754444209453,7.24410521,3566.2,3565.7,0.6487]
[1754444209648,0.55,3566.8,3565.1,0.04]
[1754444209950,2.80404195,3566.3,3566.1,0.6887]
[1754444210282,7.24210521,3566.2,3566.1,0.04]
[1754444210780,3.46711673,3567.4,3566.1,1.1223]
[1754444210953,4.4720405,3567.3,3566.2,1.0823]
[1754444211278,4.4720405,3567.3,3566.3,0.6487]
[1754444211515,2.80392612,3566.5,3566.1,0.04]
[1754444211672,2.80410521,3566.2,3566.1,0.04]
[1754444211868,7.24010521,3566.2,3566.1,0.04]
[1754444212485,7.70200521,3566.2,3566.1,0.04]
[1754444212638,4.8979,3566.2,3566.1,0.04]
[1754444212838,3.0,3567.5,3566.1,0.6887]
[1754444213050,2.8037367,3566.7,3566.1,1.1223]
[1754444213256,3.0,3567.2,3566.2,0.6487]
[1754444213257,4.436,3566.6,3566.2,0.6487]
[1754444213479,0.4619,3567.2,3566.3,0.4336]
[1754444213777,4.47104247,3567.1,3566.4,0.6487]
[1754444213957,4.434,3567.0,3566.4,0.6487]
[1754444214154,4.435,3566.9,3566.4,0.6487]
[1754444214479,4.435,3566.9,3566.5,0.4336]
[1754444214689,4.435,3566.9,3566.6,0.6487]
[1754444214883,0.14,3566.6,3566.5,0.4336]
[1754444215051,4.575,3566.6,3566.5,0.4336]
[1754444215381,0.14,3566.6,3566.5,3.23746933]
[1754444215582,4.432,3566.7,3566.6,2.80379072]
[1754444215886,0.14,3566.7,3566.6,3.88609072]
[1754444216386,4.432,3566.9,3566.8,2.8036335]
[1754444216545,4.432,3566.9,3566.8,3.8859335]
[1754444216747,4.572,3566.9,3566.8,3.8859335]
[1754444217451,0.14,3566.9,3566.8,3.8859335]
[1754444217645,6.727,3568.3,3566.8,1.78364712]
[1754444217847,4.429,3568.2,3567.7,2.80289635]
[1754444218081,4.429,3568.2,3567.8,0.6487]
[1754444218248,4.429,3568.2,3567.7,2.80289635]
[1754444218445,4.429,3568.2,3567.9,0.6487]
[1754444218652,6.727,3568.3,3568.0,0.6487]
[1754444218845,6.727,3568.3,3566.5,0.87374693]
[1754444218846,4.427,3568.2,3568.1,0.6487]
[1754444219071,0.14,3567.9,3567.6,3.23653632]
[1754444219670,0.14,3567.9,3567.7,0.6487]
[1754444219869,0.14,3567.9,3567.7,3.45162446]
[1754444220181,0.14,3567.9,3567.8,3.23644769]
[1754444220388,0.4619,3569.2,3567.8,1.75111353]
[1754444220570,4.425,3568.8,3568.5,2.80223603]
[1754444220763,0.14,3568.6,3568.5,3.23583603]
[1754444221062,0.14,3568.6,3568.2,2.80248559]
[1754444221263,0.14,3568.6,3568.3,0.6487]
[1754444221487,0.14,3568.6,3568.5,2.80229788]
[1754444221679,0.04,3568.9,3568.8,2.80206231]
[1754444222063,0.04,3568.9,3568.8,3.88436231]
[1754444222378,0.04,3568.9,3568.8,4.02436231]
[1754444222700,0.04,3568.9,3568.8,4.70702019]
[1754444223494,0.04,3568.9,3568.4,0.4336]
[1754444223670,0.14,3568.7,3568.4,0.6487]
[1754444223867,0.14,3568.7,3568.4,1.0823]
[1754444224068,0.14,3568.7,3568.4,3.88465976]
[1754444224406,0.14,3568.7,3568.5,0.6487]
[1754444224895,2.94214596,3568.7,3568.6,0.6487]
[1754444225393,0.14,3568.7,3567.9,3.0]
[1754444225592,0.14,3568.5,3568.2,0.6487]
[1754444225751,0.14,3568.5,3568.3,0.6487]
[1754444225953,0.14,3568.5,3568.4,0.6487]
[1754444226661,0.14,3568.8,3568.4,3.88467641]
[1754444226995,7.25699261,3568.9,3568.5,0.6487]
[1754444227154,4.455,3568.9,3568.5,1.0823]
[1754444227354,0.14,3568.7,3568.6,0.6487]
[1754444227563,0.39951536,3568.7,3568.6,0.6487]
[1754444227862,0.25951536,3568.7,3568.6,3.88451935]
[1754444228074,0.25951536,3568.7,3568.6,4.27298695]
[1754444228268,0.04,3568.9,3568.8,3.35206231]
[1754444228684,0.04,3568.9,3568.8,3.49206231]
[1754444228893,0.04,3568.9,3568.8,4.57436231]
[1754444229060,0.04,3568.9,3568.8,5.35086724]
[1754444230703,0.04,3568.9,3568.8,8.35086724]
[1754444230872,0.001,3569.6,3569.5,2.80151281]
[1754444231368,0.001,3569.6,3569.5,7.57381281]
[1754444232205,1e-08,3569.6,3569.5,7.57381281]
[1754444232388,1e-08,3569.6,3569.5,9.05195455]
[1754444233661,1e-08,3569.9,3569.8,3.35127738]
[1754444233897,1e-08,3569.9,3569.8,10.89227738]
[1754444234412,1e-08,3569.9,3569.8,12.00037738]
[1754444235113,1e-08,3569.9,3569.8,11.99837738]
[1754444235278,1e-08,3569.9,3569.8,13.88949412]
[1754444237714,1e-08,3569.9,3569.8,13.44629412]
[1754444238021,1e-08,3569.9,3569.8,13.88549412]
[1754444238220,0.001,3570.5,3570.0,2.80112044]
[1754444238380,0.001,3570.5,3570.2,6.35096353]
[1754444238586,0.001,3570.5,3570.2,11.13243113]
[1754444238781,0.001,3570.5,3570.2,11.27243113]
[1754444238982,0.001,3570.5,3570.2,12.38053113]
[1754444240077,1e-08,3570.3,3570.2,12.38053113]
[1754444240479,0.001,3570.7,3570.6,3.35064975]
[1754444240817,0.041,3570.9,3570.8,6.35049288]
[1754444240994,0.041,3570.9,3570.8,10.74049288]
[1754444241189,0.041,3570.9,3570.8,11.98859288]
[1754444242527,0.041,3570.9,3570.8,7.59859288]
[1754444242689,0.041,3570.9,3570.8,13.03772294]
[1754444244017,0.041,3570.9,3570.8,8.21052294]
[1754444244334,0.041,3570.9,3570.8,12.59352294]
[1754444244487,0.471,3570.9,3570.8,5.94049288]
[1754444244687,0.471,3570.9,3570.8,10.32349288]
[1754444245533,0.471,3570.9,3570.8,3.14]
[1754444245693,0.471,3570.9,3570.8,4.381]
[1754444245891,0.041,3570.9,3570.8,7.18149288]
[1754444246092,0.041,3570.9,3570.8,7.99039288]
[1754444246308,0.041,3570.9,3570.8,7.32149288]
[1754444246702,0.041,3570.9,3570.8,4.521]
[1754444246940,0.471,3570.9,3570.8,0.14]
[1754444247110,0.471,3570.9,3570.7,4.38]
[1754444247432,3.27148612,3570.9,3570.6,4.379]
[1754444247611,0.14,3570.8,3570.6,4.379]
[1754444247807,0.041,3570.9,3570.7,3.60947131]
[1754444248008,0.041,3570.9,3570.8,7.84839288]
[1754444248319,0.041,3570.9,3570.8,11.39839288]
[1754444248520,0.041,3570.9,3570.8,11.83759288]
[1754444248720,0.041,3570.9,3570.8,13.3154093]
[1754444249033,0.041,3570.9,3570.8,12.8762093]
[1754444249261,0.041,3570.9,3570.8,13.0162093]
[1754444249575,0.041,3570.9,3570.8,11.7953093]
[1754444250058,0.041,3570.9,3570.8,10.31749288]
[1754444250663,0.041,3570.9,3570.8,10.98639288]
[1754444250958,0.041,3570.9,3570.8,11.97559288]
[1754444251157,0.001,3571.2,3571.1,6.35025762]
[1754444251360,0.001,3571.4,3571.3,3.3501008]
[1754444251525,0.001,3571.4,3571.3,12.38943664]
[1754444251725,0.001,3571.4,3571.3,12.52943664]
[1754444251926,0.001,3571.4,3571.3,13.63753664]
[1754444252222,0.001,3571.7,3571.6,3.3498656]
[1754444252422,0.001,3571.7,3571.6,10.7228656]
[1754444252642,0.001,3571.7,3571.6,13.75550149]
[1754444254666,0.001,3571.7,3571.6,14.19470149]
[1754444255658,1e-08,3571.7,3571.6,14.19470149]
[1754444257080,1e-08,3571.9,3571.8,3.34970883]
[1754444257274,1e-08,3572.0,3571.9,2.79963044]
[1754444257448,1e-08,3572.0,3571.9,2.93963044]
[1754444257774,1e-08,3572.0,3571.9,4.04773044]
[1754444258334,1e-08,3572.0,3571.9,7.59773044]
[1754444259946,1e-08,3572.0,3571.9,7.15853044]
[1754444260179,1e-08,3572.0,3571.9,8.09615044]
[1754444260381,1e-08,3572.0,3571.9,11.90715044]
[1754444260539,1e-08,3572.0,3571.9,12.45715044]
[1754444260880,1e-08,3572.0,3571.9,13.12605044]
[1754444261452,1e-08,3572.0,3571.9,12.45715044]
[1754444261859,1e-08,3572.0,3571.9,8.09615044]
[1754444262049,0.43000001,3572.0,3571.9,12.45615044]
[1754444262247,1e-08,3572.0,3571.9,13.12505044]
[1754444262987,1e-08,3572.0,3571.9,13.57175044]
[1754444265398,1e-08,3572.0,3571.9,17.85175044]
[1754444265698,1e-08,3572.0,3571.9,17.40505044]
[1754444267198,1e-08,3572.0,3571.9,17.39805044]
[1754444267400,1e-08,3572.0,3571.9,16.72915044]
[1754444267899,0.47200001,3572.0,3571.9,16.72615044]
[1754444268134,1e-08,3572.0,3571.9,16.72615044]
[1754444268625,1e-08,3572.0,3571.9,17.38835044]
[1754444269036,1e-08,3572.0,3571.9,12.37615044]
[1754444269236,0.47200001,3572.0,3571.9,14.56863044]
[1754444269402,0.47200001,3572.0,3571.9,5.93963044]
[1754444269599,0.47200001,3572.0,3571.9,4.488]
[1754444270135,0.47200001,3572.0,3571.4,2.79996449]
[1754444270301,0.47200001,3572.0,3571.6,2.93981652]
[1754444270488,0.47200001,3572.0,3571.7,4.347]
[1754444271533,0.47200001,3572.0,3571.7,2.79973974]
[1754444271698,0.472,3571.9,3571.8,7.14670883]
[1754444271906,0.472,3571.9,3571.8,4.347]
[1754444272528,0.472,3571.9,3571.8,7.14670883]
[1754444272836,0.472,3571.9,3571.8,4.347]
[1754444273613,0.472,3571.9,3571.8,7.14670883]
[1754444274101,1e-08,3572.0,3571.9,2.79963044]
[1754444274425,1e-08,3572.0,3571.9,3.46183044]
[1754444275041,0.47200001,3572.0,3571.9,2.79963044]
[1754444276537,1e-08,3572.0,3571.9,2.79963044]
[1754444276851,1e-08,3572.0,3571.9,3.46183044]
[1754444277136,1e-08,3572.0,3571.9,7.53669126]
[1754444277297,1e-08,3572.0,3571.9,8.08669126]
[1754444277719,1e-08,3572.0,3571.9,8.53339126]
[1754444280023,1e-08,3572.0,3571.9,8.64540826]
[1754444280959,0.001,3573.5,3573.4,2.79845525]
[1754444281096,0.001,3573.5,3573.4,7.13445525]
[1754444281292,0.001,3573.5,3573.4,7.93665525]
[1754444282891,0.001,3573.5,3573.4,11.34665525]
[1754444283260,1e-08,3573.5,3573.4,11.93335525]
[1754444283396,1e-08,3573.5,3573.4,13.4065454]
[1754444284700,1e-08,3573.5,3573.4,12.2936454]
[1754444284910,1e-08,3573.5,3573.4,4.61319015]
[1754444285107,1e-08,3573.5,3573.4,10.27045525]
[1754444285108,0.47200001,3573.5,3573.4,10.27045525]
[1754444287550,0.47200001,3573.5,3573.4,7.472]
[1754444287758,0.47200001,3573.5,3573.4,10.27045525]
[1754444288057,0.47200001,3573.5,3573.4,3.14]
[1754444288354,0.47200001,3573.5,3573.4,7.471]
[1754444288884,0.47200001,3573.5,3573.4,0.14]
[1754444289162,0.47200001,3573.5,3573.0,4.331]
[1754444289163,3.41040488,3573.5,3573.0,4.331]
[1754444289319,0.472,3573.4,3573.0,7.12976376]
[1754444290023,0.472,3573.4,3573.0,4.331]
[1754444290358,2.79869945,3573.1,3572.7,0.14]
[1754444290520,0.14,3573.0,3572.6,7.331]
[1754444290725,0.612,3573.0,3572.6,7.331]
[1754444290948,0.14,3573.0,3572.6,8.0781]
[1754444291138,0.612,3573.4,3572.9,2.93882708]
[1754444291336,0.472,3573.3,3572.9,2.93882708]
[1754444291534,0.14,3573.4,3572.9,2.93882708]
[1754444291535,0.472,3573.2,3572.9,0.14]
[1754444291736,0.472,3573.2,3572.7,7.331]
[1754444291953,0.14,3573.1,3572.7,7.331]
[1754444292328,0.472,3573.0,3572.7,7.331]
[1754444292583,1e-08,3573.5,3573.4,2.79845525]
[1754444292727,1e-08,3573.5,3573.4,7.12945525]
[1754444293083,1e-08,3573.5,3573.4,7.81525525]
[1754444294028,1e-08,3573.5,3573.4,11.81625525]
[1754444294763,1e-08,3573.5,3573.4,7.03425525]
[1754444294927,1e-08,3573.5,3573.4,12.39363552]
[1754444295338,1e-08,3573.5,3573.4,12.84463552]
[1754444301074,0.001,3574.3,3574.2,6.34782888]
[1754444301368,0.001,3574.3,3574.2,10.67782888]
[1754444301549,0.001,3574.4,3574.3,3.3477506]
[1754444301751,0.001,3574.4,3574.3,5.65014697]
[1754444301954,0.001,3574.4,3574.3,5.19914697]
[1754444302643,0.001,3574.4,3574.3,5.33914697]
[1754444302868,0.001,3574.4,3574.3,4.10334697]
[1754444303647,0.001,3574.4,3574.3,4.78914697]
[1754444304145,0.4532,3574.4,3574.3,4.10334697]
[1754444304865,0.4532,3574.4,3574.3,2.9377506]
[1754444305037,0.4532,3574.4,3574.3,7.2667506]
[1754444305238,0.4532,3574.4,3574.3,10.2667506]
[1754444305440,0.4532,3574.4,3574.3,3.14]
[1754444305642,0.4532,3574.4,3574.3,7.469]
[1754444306098,0.4532,3574.4,3574.3,10.2667506]
[1754444307593,0.4532,3574.4,3574.3,7.469]
[1754444307760,0.4532,3574.4,3574.3,10.2667506]
[1754444308573,0.4532,3574.4,3574.3,7.469]
[1754444308776,0.4532,3574.4,3574.2,2.79781532]
[1754444308777,0.4532,3574.4,3574.2,4.329]
[1754444309705,3.25088416,3574.4,3574.0,4.329]
[1754444309865,2.79868416,3574.4,3574.0,4.329]
[1754444310066,3.24995675,3574.3,3574.0,4.329]
[1754444310267,0.4522,3574.2,3573.5,6.716]
[1754444310614,0.4522,3574.2,3573.6,7.12728106]
[1754444311125,3.25003133,3574.2,3573.6,4.329]
[1754444311269,2.79783133,3574.2,3573.6,4.329]
[1754444311464,0.4522,3574.1,3573.6,4.329]
[1754444312297,2.79874268,3574.4,3573.7,2.79820095]
[1754444312497,0.001,3574.4,3573.8,5.0148]
[1754444312697,0.001,3574.4,3574.3,2.7977506]
[1754444312999,0.001,3574.4,3574.3,7.1267506]
[1754444313201,0.001,3574.4,3574.3,7.8125506]
[1754444313506,0.001,3574.4,3574.3,5.0148]
[1754444313804,0.001,3574.4,3574.3,7.8125506]
[1754444314999,0.001,3574.4,3574.3,8.87359345]
[1754444315200,0.001,3574.4,3574.3,9.32459345]
[1754444315702,0.001,3574.4,3574.3,8.87359345]
[1754444316202,0.4532,3574.4,3574.3,4.329]
[1754444316368,0.001,3574.4,3574.3,5.0148]
[1754444316568,0.001,3574.4,3574.3,8.2635506]
[1754444317710,0.001,3574.4,3574.3,11.8135506]
[1754444318709,0.001,3574.4,3574.3,11.9535506]
[1754444318879,0.001,3574.4,3574.3,13.42868764]
[1754444319084,0.04,3574.9,3574.8,3.34735929]
[1754444319399,0.04,3574.9,3574.8,10.67635929]
[1754444319400,1e-08,3574.9,3574.8,10.67635929]
[1754444319604,1e-08,3574.9,3574.8,10.81635929]
[1754444319801,1e-08,3574.9,3574.8,11.95315929]
[1754444320014,1e-08,3574.9,3574.8,13.27251962]
[1754444321182,1e-08,3575.0,3574.9,3.34728104]
[1754444321397,1e-08,3575.0,3574.9,4.48408104]
[1754444322124,1e-08,3575.0,3574.9,7.48408104]
[1754444322333,0.001,3575.7,3575.3,0.55]
[1754444322540,0.001,3575.7,3575.6,6.34673341]
[1754444322733,0.001,3575.7,3575.6,10.67473341]
[1754444323033,0.001,3575.7,3575.6,11.74263341]
[1754444323337,0.001,3575.7,3575.6,12.45535351]
[1754444323634,0.4522,3576.5,3575.7,3.3466552]
[1754444323927,0.4522,3576.5,3575.7,7.17613018]
[1754444324284,0.4522,3576.5,3575.7,6.9641552]
[1754444326288,0.4995,3576.9,3575.7,7.4145552]
[1754444326488,0.4995,3576.9,3575.7,8.88969224]
[1754444326687,0.4595,3576.7,3575.7,8.88969224]
[1754444327581,0.4595,3576.7,3575.7,9.0966439]
[1754444331139,0.4595,3576.7,3575.7,9.2366439]
[1754444332417,0.4595,3576.5,3575.7,8.7862439]
[1754444332617,0.041,3576.9,3575.7,8.7862439]
[1754444332941,0.4605,3575.8,3575.7,11.73779224]
[1754444333340,0.4605,3575.8,3575.7,10.2626552]
[1754444334755,0.4605,3575.8,3575.7,5.9366552]
[1754444335059,0.4605,3575.8,3575.7,10.2626552]
[1754444335412,0.4605,3575.8,3575.7,0.14]
[1754444335626,0.4605,3575.8,3575.7,7.2626552]
[1754444337462,0.4605,3575.8,3575.7,2.9366552]
[1754444337753,0.4605,3575.8,3575.7,4.326]
[1754444338313,0.4605,3575.8,3575.7,7.1226552]
[1754444340210,0.001,3575.8,3575.7,7.1226552]
[1754444340542,0.001,3575.8,3575.7,8.88609534]
[1754444342341,0.001,3575.8,3575.7,11.88609534]
[1754444345065,0.001,3575.8,3575.7,12.43609534]
[1754444345362,0.001,3575.8,3575.7,12.88649534]
[1754444346065,0.4605,3576.6,3575.8,3.34657698]
[1754444346363,1e-08,3575.9,3575.8,10.26300114]
[1754444349801,1e-08,3575.9,3575.8,13.26300114]
[1754444354592,1e-08,3575.9,3575.8,12.81260114]
[1754444355491,1e-08,3575.9,3575.8,13.24620114]
[1754444356010,0.041,3576.9,3575.8,13.24620114]
[1754444356011,0.041,3576.9,3576.8,2.79579512]
[1754444356303,0.041,3576.9,3576.8,7.67796305]
[1754444356502,0.041,3576.9,3576.8,7.81796305]
[1754444357670,0.041,3576.9,3576.8,8.44206305]
[1754444357871,0.041,3576.9,3576.8,7.81796305]
[1754444358097,0.4753,3576.9,3576.8,7.81796305]
[1754444358854,0.041,3576.9,3576.8,7.81796305]
[1754444359147,0.4753,3576.9,3576.8,7.81796305]
[1754444359281,0.4753,3576.9,3576.8,0.14]
[1754444359481,0.4753,3576.9,3576.8,7.25879512]
[1754444360616,0.041,3576.9,3576.8,7.25879512]
[1754444361322,0.4753,3576.9,3576.8,2.93579512]
[1754444361819,0.4753,3576.9,3576.8,7.25779512]
[1754444362496,0.4753,3576.9,3576.8,4.322]
[1754444362899,0.4753,3576.9,3576.6,0.14]
[1754444363096,0.4753,3576.9,3576.3,2.79617715]
[1754444363097,3.61225747,3576.9,3576.5,4.322]
[1754444363298,0.5743,3576.8,3576.5,4.322]
[1754444363511,0.4343,3576.7,3576.5,4.322]
[1754444364023,0.4343,3576.6,3576.5,4.322]
[1754444365627,0.4343,3576.6,3575.7,1.00594014]
[1754444365937,0.4343,3576.6,3575.3,3.42305632]
[1754444365938,0.5743,3576.6,3576.1,2.93633502]
[1754444366105,0.5743,3576.6,3576.2,4.322]
[1754444366300,0.14,3576.6,3576.2,4.322]
[1754444366510,0.4343,3576.5,3576.2,4.322]
[1754444366692,0.14,3576.6,3576.2,4.322]
[1754444366900,0.4343,3576.4,3576.2,4.322]
[1754444367100,0.14,3576.6,3576.2,4.322]
[1754444367295,0.4343,3576.3,3576.2,7.11826419]
[1754444367603,0.4343,3576.3,3576.1,0.14]
[1754444367802,0.4692533,3576.2,3575.6,0.002]
[1754444368003,0.14,3576.1,3575.7,4.322]
[1754444368190,0.4343,3576.0,3575.7,4.322]
[1754444368393,0.4343,3575.9,3575.7,4.322]
[1754444368602,0.07594646,3576.9,3575.7,4.322]
[1754444368603,0.4343,3575.8,3575.7,4.322]
[1754444368849,0.5743,3575.8,3575.7,4.322]
[1754444369543,0.5743,3575.8,3575.6,0.002]
[1754444369730,0.4343,3575.7,3575.6,0.002]
[1754444371462,3.2309552,3575.7,3575.6,0.002]
[1754444371609,3.84770135,3575.7,3575.6,0.002]
[1754444373928,0.17495721,3575.8,3575.6,0.002]
[1754444374131,0.14,3575.7,3575.6,0.002]
[1754444374535,3.3709552,3575.7,3575.6,0.002]
[1754444374749,0.14,3575.7,3575.6,0.002]
[1754444375112,2.9366552,3575.7,3575.6,0.002]
[1754444375548,3.55688953,3575.7,3575.6,0.002]
[1754444375709,3.99118953,3575.7,3575.6,0.002]
[1754444376530,4.02614772,3575.7,3575.6,0.002]
[1754444376728,3.99118953,3575.7,3575.6,0.002]
[1754444376911,1.19453433,3575.7,3575.6,0.002]
[1754444377137,3.99118953,3575.7,3575.6,0.002]
[1754444377338,2.9366552,3575.7,3575.6,0.002]
[1754444377653,0.14,3575.7,3575.6,0.6261]
[1754444382137,0.14,3575.7,3575.6,3.42283341]
[1754444382893,0.14,3575.7,3575.6,3.88473341]
[1754444383260,0.14,3576.3,3576.0,2.7963561]
[1754444383472,0.14,3576.3,3576.1,0.6566]
[1754444384146,0.14,3576.3,3576.2,0.6566]
[1754444384343,0.14,3576.3,3576.0,0.6566]
[1754444384570,2.93624209,3576.3,3576.0,0.6566]
[1754444385157,0.14,3576.3,3576.0,0.6566]
[1754444385372,2.93618966,3576.3,3576.0,0.6566]
[1754444385765,1.05615061,3576.3,3575.8,4.322]
[1754444385983,0.14,3575.9,3575.8,4.322]
[1754444386577,0.14,3575.9,3575.8,7.77517698]
[1754444386780,0.14,3575.9,3575.8,3.45317698]
[1754444387775,0.14,3576.2,3576.1,2.79632406]
[1754444387977,2.79592152,3576.7,3576.1,2.79632406]
[1754444388164,0.14,3576.4,3576.2,0.6566]
[1754444388368,0.14,3576.4,3576.2,3.91474361]
[1754444388588,0.14,3576.4,3576.3,3.258086]
[1754444388789,0.14,3576.4,3576.3,3.914686]
[1754444389086,0.14,3576.4,3576.3,8.235686]
[1754444389271,0.041,3576.9,3576.8,2.79579512]
[1754444389877,0.041,3576.9,3576.8,3.45239512]
[1754444390394,0.041,3576.9,3576.8,3.91429512]
[1754444390685,0.041,3576.9,3576.8,1.1185]
[1754444390887,0.041,3576.9,3576.8,0.6566]
[1754444391089,0.5134,3576.9,3576.7,4.321]
[1754444391257,0.041,3576.9,3576.5,4.32]
[1754444391586,0.14,3576.6,3576.5,4.32]
[1754444391995,0.6124,3576.6,3576.3,4.32]
[1754444392358,0.14,3576.4,3575.7,0.4619]
[1754444392552,0.14,3576.2,3575.8,4.9766]
[1754444392770,0.14,3576.2,3575.9,3.4530973]
[1754444392972,0.14,3576.2,3575.9,3.91499805]
[1754444393183,0.14,3576.2,3575.9,3.25839805]
[1754444393487,0.14,3576.2,3576.0,0.6566]
[1754444393859,0.14,3576.2,3576.1,0.6566]
[1754444394775,0.14,3576.2,3575.8,4.32]
[1754444394993,0.14,3576.2,3575.8,0.6566]
[1754444395162,2.93629235,3576.2,3575.9,4.32]
[1754444395361,2.79629235,3576.2,3575.9,4.32]
[1754444395562,0.14,3576.0,3575.6,4.322]
[1754444395763,0.6124,3576.0,3575.6,4.322]
[1754444395976,0.14,3575.8,3575.7,0.6566]
[1754444396460,0.14,3575.8,3575.6,4.322]
[1754444396666,0.14,3575.8,3575.6,0.002]
[1754444397286,0.4724,3575.7,3575.6,0.002]
[1754444397496,3.30401339,3575.7,3575.6,0.002]
[1754444397795,3.89311291,3575.7,3575.6,0.002]
[1754444397961,3.9280711,3575.7,3575.6,0.002]
[1754444398157,3.89311291,3575.7,3575.6,0.002]
[1754444398694,2.7966552,3575.7,3575.6,0.002]
[1754444399881,0.14,3575.8,3575.6,0.6586]
[1754444400103,4.32,3576.1,3575.7,0.6566]
[1754444400403,2.7966552,3575.7,3575.6,0.002]
[1754444400578,0.14,3575.8,3575.6,0.002]
[1754444400976,2.93659176,3575.8,3575.6,0.002]
[1754444401494,2.7966552,3575.7,3575.6,0.002]
[1754444401694,3.2690552,3575.7,3575.6,0.002]
[1754444401902,3.30401339,3575.7,3575.6,0.002]
[1754444402287,0.4724,3575.7,3575.6,0.002]
[1754444402485,2.93659177,3575.8,3575.6,0.002]
[1754444403567,2.7966552,3575.7,3575.6,0.002]